Cogmind - Beta 17 @@@ ROGUE MODE // 2026.07.24 @ 19:09:53 Player: Crehl Result: Destroyed by G-34 Mercenary with Small Laser Performance ------------- Evolutions (0) 0 Regions Visited (1) 200 Robots Destroyed (15) 75 Value Destroyed (321) 321 Prototype IDs (0) 0 Alien Tech Used (0) 0 Bonus (0) 0 TOTAL SCORE: 596 Bonus ------- None Cogmind --------- Core Integrity 0/250 Matter 273/300 Energy 100/100 System Corruption 0% Temperature Warm (170) Movement Core (400) Ox7 Location -10/Materials Parts ------- > --- POWER (1) -------- (None) > --- PROPULSION (2) --- (None) > --- UTILITY (2) ------ Large Storage Unit Structural Scanner > --- WEAPON (2) ------- Particle Gun > --- INVENTORY (15) --- Ion Engine Light Treads Aluminum Leg Aluminum Leg Aluminum Leg Aluminum Leg Aluminum Leg Aluminum Leg Improved Heat Sink Seismic Detector Transport Network Coupler Light Armor Plating EM Pulse Gun Grenade Launcher Mining Laser Peak State ------------ > --- POWER ------------ Light Ion Engine > --- PROPULSION ------- Light Treads Aluminum Leg > --- UTILITY ---------- Large Storage Unit Structural Scanner > --- WEAPON ----------- Particle Gun Assault Rifle > --- INVENTORY -------- Ion Engine Aluminum Leg Aluminum Leg Aluminum Leg Aluminum Leg Aluminum Leg Improved Heat Sink Seismic Detector Transport Network Coupler Light Armor Plating EM Pulse Gun Grenade Launcher Mining Laser [Rating: 9] Favorites ----------- Power Ion Engine Engine Ion Engine Propulsion Light Treads Treads Light Treads Leg Aluminum Leg Utility Structural Scanner Device Structural Scanner Storage Large Storage Unit Weapon Assault Rifle Energy Gun Medium Laser Ballistic Gun Assault Rifle Special Weapon Mining Laser Build | -11 -10 ------- Run | Yrd Mat Slots Evolved . | . . Power . | . . Propulsion . | . . Utility . | . . Weapon . | . . Parts Attached 17 | 8 9 Power 2 | 1 1 Engine 2 | 1 1 Core . | . . Reactor . | . . Propulsion 4 | 2 2 Treads 2 | 2 . Leg 2 | . 2 Wheel . | . . Hover . | . . Flight . | . . Utility 4 | 2 2 Device 2 | 1 1 Storage 2 | 1 1 Processor . | . . Hackware . | . . Protection . | . . Artifact . | . . Weapon 7 | 3 4 Energy Gun 3 | 2 1 Energy Cannon . | . . Ballistic Gun 3 | 1 2 Ballistic Cannon . | . . Launcher . | . . Special Weapon 1 | . 1 Impact Weapon . | . . Slashing Weapon . | . . Piercing Weapon . | . . Special Melee Weapon . | . . Unidentified Prototypes . | . . Parts Lost 7 | . 7 Power 2 | . 2 Propulsion 3 | . 3 Utility . | . . Weapon 2 | . 2 Highest Loss Streak 4 | . 4 To Critical Strikes . | . . Average Backups 8 | 4 10 Power . | . 1 Propulsion 3 | 1 3 Utility 2 | . 2 Weapon 2 | 1 2 Tool/Special . | . . Unused Backups 11 | . 11 Power 1 | . 1 Propulsion 4 | . 4 Utility 5 | . 5 Weapon 1 | . 1 Tool/Special . | . . Average Slot Usage (%) 95 | . 95 Engine 12 | . 12 Treads 24 | . 24 Leg 2 | . 2 Device 14 | . 14 Storage 14 | . 14 Energy Gun 3 | . 3 Ballistic Gun 21 | . 21 Special Weapon 2 | . 2 Peak Build Rating 9 | 8 9 Average Rating 7 | 5 7 On Entrance 4 | . 8 Avg Prop Armor Cover (%) . | . . Naked Turns . | . . Heaviest Build 30 | 14 30 Greatest Support 40 | 40 40 Greatest Overweight (x) 2 | 1 2 Average Overweight (x) . | . . Largest Inventory Capacity 15 | 8 15 Average Capacity 11 | 7 13 Most Carried 15 | 7 15 Average Carried 9 | 4 10 Final Capacity 15 | 8 15 Final Carried 15 | 7 15 Class Distribution -------------------- 100% | Mutant Dominant Class ---------------- Mutant | -10/Materials Resources | -11 -10 ----------- Run | Yrd Mat Matter Collected 553 | 292 261 Remotely . | . . Salvage Created 573 | 186 387 Parts 28 | 13 15 Haulers Intercepted 1 | . 1 Recyclers Shooed . | . . Parts Field Recycled . | . . Retrieved Matter . | . . Parts Self-Destructed . | . . Prevented . | . . Parts Restored . | . . Kills | -11 -10 ------- Run | Yrd Mat Combat Hostiles Destroyed 7 | . 7 Guns 7 | . 7 Classes Destroyed 5 | 2 3 Worker 1 | . 1 Tunneler 5 | 5 . Hauler 1 | . 1 Recycler 1 | 1 . Grunt 7 | . 7 Best Kill Streak 6 | 6 3 Combat Bots Only 2 | . 2 Max Kills in Single Turn 1 | 1 1 Gunslinging . | . . Exploded . | . . Melee . | . . Uniques/NPCs Destroyed . | . . Combat | -11 -10 -------- Run | Yrd Mat Hostile Shots Fired 104 | . 104 Missed 21 | . 21 Hits 83 | . 83 Projectile 83 | . 83 Critical Strikes 3 | . 3 Damage Taken 1082 | . 1082 Core 258 | . 258 Absorbed by Shields . | . . Core Remaining (%) 100 | 100 . Volleys Fired 62 | 12 50 Largest 2 | 2 2 Hottest 100 | 70 100 Shots Fired 110 | 24 86 Gun 107 | 24 83 Cannon . | . . Launcher . | . . Special 3 | . 3 Kinetic 78 | 12 66 Thermal 32 | 12 20 Explosive . | . . Electromagnetic . | . . Robot Hit Streak 11 | 7 11 Robot Miss Streak 4 | 1 4 Penetration Max . | . . Secondary Targets 1 | . 1 Max Gunslinging Chain 1 | . 1 Shots Hit Robots 76 | 16 60 Core Hits 28 | 7 21 Critical Kills . | . . Critical Parts Destroyed . | . . Critical Strikes . | . . Melee Attacks . | . . Impact . | . . Slashing . | . . Piercing . | . . Sneak Attacks . | . . Combat Hostiles . | . . Follow-up Attacks . | . . Damage Inflicted 995 | 176 819 Guns 995 | 176 819 Cannons . | . . Explosions . | . . Melee . | . . Ramming . | . . Kinetic 630 | 51 579 Thermal 365 | 125 240 Explosive . | . . Electromagnetic . | . . Impact . | . . Slashing . | . . Piercing . | . . Highest Corruption . | . . Average Corruption . | . . Corruption Purged . | . . Corruption Blocked . | . . Overload Shots . | . . Overflow Damage . | . . Projectiles . | . . Explosions . | . . Melee . | . . Knockbacks . | . . Impact . | . . Kinetic . | . . Secondary . | . . Self-Inflicted Damage . | . . Shots . | . . Rammed . | . . Targets Rammed . | . . Kicked . | . . Crushed . | . . Highest Temperature 387 | 90 387 Average Temperature 96 | 37 122 Received Heat Transfer 651 | . 651 Effects 5 | . 5 Energy Bleed 2 | . 2 Interference 3 | . 3 Siege Activations . | . . Martial Activations . | . . Shielding Activations . | . . Robots Disrupted . | . . Combat Hostiles . | . . Robots Corrupted . | . . Combat Hostiles . | . . Parts Fried . | . . Impact Corruptions . | . . Robots Melted . | . . Combat Hostiles . | . . Parts Melted . | . . Heat Transferred 962 | 370 592 Parts Sabotaged . | . . Parts Stolen . | . . Parts Stripped . | . . Power Chain Reactions . | . . Alert | -11 -10 ------- Run | Yrd Mat Maximum Alert Level . | . . Low Security (%) 100 | 100 100 Level 1 . | . . Level 2 . | . . Level 3 . | . . Level 4 . | . . Level 5 . | . . High Security . | . . Max Security . | . . Peak Influence 54 | 10 54 Initial . | . . Average 13 | 1 16 Influence Increases 229 | 30 199 Destroy 0b10 Robot/C 140 | . 140 Destroy 0b10 Robot/NC 40 | 30 10 Destroy Leader 42 | . 42 Successful Hack 4 | . 4 Destroy Structure 3 | . 3 Influence Decreases 229 | 30 199 Time Decay 176 | 30 146 Lost Part 53 | . 53 Squads Dispatched 1 | . 1 Investigation . | . . Extermination . | . . Reinforcement 1 | . 1 Assault . | . . Garrison . | . . Intercept . | . . Searches Triggered . | . . Construction Impeded . | . . Haulers Reinforced . | . . Active Scanning Responses . | . . Cargo Convoy Interrupts . | . . Stealth | -11 -10 --------- Run | Yrd Mat Distress Signals 1 | . 1 Communications Jammed . | . . Distress Signals . | . . Times Spotted 13 | . 13 Peak Tracking Total 4 | . 4 Tactical Retreats . | . . Traps | -11 -10 ------- Run | Yrd Mat Traps Triggered . | . . Indirectly . | . . Trap Hack Attempts . | . . Triggered . | . . Disarmed . | . . Reprogrammed . | . . Reused . | . . Traps Extracted . | . . Installed . | . . Triggered . | . . Machines | -11 -10 ---------- Run | Yrd Mat Machines Disabled . | . . Max in Single Turn . | . . Machines Repaired . | . . Machines Dismantled . | . . Machines Sabotaged . | . . Overloaded Fab Kills . | . . Hacking | -11 -10 --------- Run | Yrd Mat Machines Accessed 3 | . 3 Terminals 2 | . 2 Fabricators . | . . Repair Stations . | . . Recycling Units 1 | . 1 Scanalyzers . | . . Garrison Access . | . . Total Hacks 4 | . 4 Successful 2 | . 2 Failed 2 | . 2 Catastrophic 1 | . 1 Database Lockouts . | . . Manual 2 | . 2 Terminals 3 | . 3 Fabricators . | . . Repair Stations . | . . Recycling Units 1 | . 1 Scanalyzers . | . . Garrison Access . | . . Terminal Hacks 1 | . 1 Robot Analysis 1 | . 1 Fabricator Hacks . | . . Repair Station Hacks . | . . Recycling Unit Hacks 1 | . 1 Retrieve Components 1 | . 1 Scanalyzer . | . . Garrison Access Hacks . | . . Unauthorized Hacks . | . . Terminals . | . . Fabricators . | . . Repair Stations . | . . Recycling Units . | . . Scanalyzers . | . . Garrison Access . | . . Data Cores Recovered . | . . Used . | . . Hacking Detections 2 | . 2 Full Trace Events . | . . Feedback Events . | . . Feedback Blocked . | . . Robot Schematics Acquired . | . . Robots Built . | . . Authchips . | . . Time . | . . Total Robot Build Rating . | . . Part Schematics Acquired . | . . Parts Built . | . . Authchips . | . . Time . | . . Total Part Build Rating . | . . Part Studies Acquired . | . . Parts Repaired . | . . Time . | . . Parts Recycled . | . . Recycled Matter . | . . Retrieved Matter . | . . Retrieved Components 5 | . 5 Parts Scanalyzed . | . . Part Schematics Acquired . | . . Parts Damaged . | . . Bothacking | -11 -10 ------------ Run | Yrd Mat Used RIF Installer . | . . Robots Hacked . | . . Non-combat . | . . Combat . | . . Robot Hacks Applied . | . . Relay Couplers Released . | . . Fabnet Peak Effective % . | . . Robots Rewired . | . . Allies Hacked . | . . Hacks Repelled . | . . Allies | -11 -10 -------- Run | Yrd Mat Total Allies . | . . Largest Group . | . . Highest-Rated Group . | . . Highest-Rated Ally . | . . Total Orders . | . . Ally Attacks . | . . Total Damage . | . . Kills . | . . Allies Corrupted . | . . Allies Melted . | . . Intel | -11 -10 ------- Run | Yrd Mat Active Infowar (turns) 618 | 40 578 Structural 448 | . 448 Seismic 170 | 40 130 Robot Analysis Total 1 | . 1 Derelict Logs Recovered . | . . Drone Launches . | . . Drone Recoveries . | . . Exploration | -11 -10 ------------- Run | Yrd Mat Turns Passed 740 | 162 578 Spaces Moved 307 | 71 236 Core 4 | 4 . Treads 296 | 67 229 Legs 7 | . 7 Wheels . | . . Hover . | . . Flight . | . . Fastest Speed 50 | 50 160 Average Speed 162 | 155 164 Slowest Speed 260 | 160 260 Overloaded Moves . | . . Propulsion Burnouts . | . . Robots Hopped . | . . Potential Cave-ins . | . . Cave-ins Triggered . | . . Exploration Rate (%) 28 | 4 53 Regions Visited 1 Branch Regions . Pre-discovered Areas . | . . Known Exits Taken . | . . Unknown Exits Taken 1 | 1 . Scrap Searched . | . . Spaces Dug 3 | . 3 Terrain Destroyed 3 | . 3 Melee . | . . Projectile 3 | . 3 AOE . | . . Terrain Rammed . | . . Walls Destroyed . | . . Machines Disabled . | . . Actions | -11 -10 --------- Run | Yrd Mat Total 428 | 97 331 Wait 17 | . 17 Move 306 | 70 236 Hop . | . . Pick Up 18 | 7 11 Fast Attach 11 | 7 4 Attach 1 | . 1 Detach . | . . Swap 8 | 1 7 Drop 5 | . 5 Fire 62 | 12 50 Melee . | . . Ram . | . . Kick . | . . Crush . | . . Escape Stasis . | . . Rewire . | . . Trap . | . . Miscellaneous . | . . Route ------- -11/Scrapyard -10/Materials (discovered 2 exits: [*Mat x2]) History --------- Turn | Location | Event 28 | -11/Scrapyard | Discovered new exit (range 16) 163 | -11/Scrapyard | Entered Materials 316 | -10/Materials | Build established: Mutant 346 | -10/Materials | Discovered new exit (range 13) 622 | -10/Materials | Discovered new exit (range 10) 714 | -10/Materials | Core integrity fell below 50% 733 | -10/Materials | Core integrity fell below 20% 741 | -10/Materials | Destroyed by G-34 Mercenary with Small Laser Last Messages --------------- 00716_ Overheating: Energy bleed (-14). 00716_ R-06 Scavenger collects Lgt. Nuclear Core. 00718_ G-47 Trooper heat short circuits Lgt. Nuclear Core. 00721_ Overheating: System interference. 00721_ Assault Rifle temporarily disabled. 00721_ G-47 Trooper overheating. 00721_ R-06 Scavenger collects Med. Matter Pod. 00723_ Aluminum Leg destroyed. 00724_ Overheating: Energy bleed (-19). 00726_ G-47 Trooper overheating. 00729_ Overheating: System interference. 00729_ Particle Gun temporarily disabled. 00729_ Processing Tank disabled. 00732_ K-01 Serf collects debris. 00737_ Assault Rifle destroyed. 00737_ K-01 Serf collects debris. 00738_ G-47 Trooper heat spikes uncontrollably. 00739_ G-47 Trooper overheating. 00739_ K-01 Serf collects debris. 00740_ Aluminum Leg destroyed. Map ----- +----------------------------------------------------+ | + """ [ ##????""" # """ # ## | | # ##????? # "" %+ ## | | # ##?? # # ## | | # ########+###+####### ## | | ###+############ ####### ## | | # !!+!!%!!!=! ##???## ## | | # """ #########+### ##???## ## | | + """ ### # ####### ## | | # """ ### # ####### ## | | # ### """ """ # ## | | + ! ### """ """ # ## | | +#######+### """ """ #!!= """"" ""## | | ### ### #!== """"" T"## | | """ ##???## #!= """"" ""## | | """ ##???## # ## | | """ ##???############ ## | | ##???############=]] """"" ## | | """ # ?????????????##=]] """"" ## | | """ # ?????????????##=]] """""%% ## | | """ # ?????????????## w ## | | # ?????????????## ## | | ###### ?????????????## """"" ## | | ###### ?????????????## """"" ## | | ????????????????###### "" "" ## | | ???????????????####### k g ## | | ???????????????## @ gk ## | | ???????????????## k < ########% ## | | ?????????? ######## ## | | ??????????##############??????## ## | | ??????????##############??????## ## | | ??????????????????????????????## ## | | ??????????????????????????????## ## | | ??????????????????????????????## ## | | ??????????????????????????????## ## | | ?????????????????????????????? # ## | | ?????????????????????????????? # ## | | ?????????????????????????????? # ## | | ?????????????????????????????? # ## | | ?????????????????????????????? # ## | | ?????????????????????????????? # ## | | ???????????????????????????????? ## | | ???????????????????????????????? ## | | ?????????????????????????????????????? | | ?????????????????????????????????????? | | ?????????????????????????????????????? | | ?????????????????????????????????????? | | ?????????????????????????????????????? | | ?????????????????????????????????????? | | ?????????????????????????????????????? | | ?????????????????????????????????????? | +----------------------------------------------------+ Best States ------------- Heat Dissipation 25 Energy Generation 10 Energy Capacity 250 Matter Stores 300 Matter Capacity 300 Sight Range 16 Terrain Scan Density 10 Evasion (%) 40 Recoil Reduction 2 Item Schematics ----------------- None Robot Schematics ------------------ None Fabricated ------------ Nothing Repaired ---------- Nothing Studied --------- None Alien Tech Used ----------------- None Achievements -------------- None Challenges ------------ None Game ------ Seed AntimissileDroneTrap Manual? 0 Play Time 00:08:26 Cumulative 44.0 hours Start 2026.07.24 @ 19:01:49 End 2026.07.24 @ 19:09:53 Sessions 1 Manual Loads 0 Difficulty Rogue Special Mode None Game No. 31 Rogue 31 Adventurer 0 Explorer 0 Win Type - Total 0 Types 0/0/0/0/0/0/0/0/0/0 Lore% 31 Gallery% 32 Achievement% 26 Wizard Run 0 Options --------- Layout 0 ASCII 0 Keyboard 0 Movement Numpad Keybinds 0 Fullscreen 1 Font 24/Smallcaps Map View 76x50 Zoom Use 0% Tactical HUD 1 Map Filters NONE Filters NONE Steam 1 RUN: eb646e5f-08c1-4ad3-a1fa-1209f091ae94